[Event "45th FIDE Womens Olympiad 2024"]
[Site "Budapest"]
[Date "2024.09.19"]
[Round "8.30"]
[White "Guo, Qi"]
[Black "Urh, Zala"]
[Result "1-0"]
[ECO "E46"]
[WhiteElo "2367"]
[BlackElo "2251"]
[Annotator "RC"]
[PlyCount "75"]
[EventDate "2024.09.05"]
[EventType "team-tourn"]
[EventCountry "HUN"]
[SourceTitle "playchess.com"]
[Source "ChessBase"]
[SourceQuality "1"]
[WhiteTeam "China"]
[BlackTeam "Slovenia"]
[WhiteTeamCountry "CHN"]
[BlackTeamCountry "SLO"]
[TimeControl "40/5400+30:1800+30"]

1. d4 {[%emt 0:00:08]} Nf6 {[%emt 0:00:06]} 2. c4 {[%emt 0:00:12]} e6 {[%emt 0:00:05]} 3. Nc3 {[%emt 0:00:28]} Bb4 {[%emt 0:00:23]} 4. e3 {[%emt 0:01:01]} O-O {[%emt 0:01:43]} 5. Nge2 {[%emt 0:02:03]} c6 {[%emt 0:08:15]} 6. a3 {[%emt 0:00:27]} Ba5 {[%emt 0:00:03]} 7. b4 {[%emt 0:04:12]} Bc7 {[%emt 0:00:14]} 8. d5 {[%emt 0:05:32]} exd5 {[%emt 0:17:31]} 9. cxd5 {[%emt 0:01:00]} Qe7 {[%emt 0:01:07]} 10. Bb2 {[%emt 0:04:08]} Be5 {[%emt 0:04:23]} 11. g3 {[%emt 0:03:36]} cxd5 {[%emt 0:14:03]} 12. Bg2 {[%emt 0:00:25]} d6 {[%emt 0:00:48]} 13. O-O {[%emt 0:05:39]} Bg4 {[%emt 0:03:38]} 14. h3 {[%emt 0:02:08]} Be6 {[%emt 0:10:15]} 15. Qd3 {[%emt 0:09:35]} Nbd7 {[%emt 0:04:11]} 16. f4 {[%emt 0:02:42]} Bxc3 {[%emt 0:00:04]} 17. Bxc3 {[%emt 0:00:29]} Nb6 {[%emt 0:01:27]} 18. g4 {[%emt 0:06:42]} Bd7 {[%emt 0:04:13]} 19. Ng3 {[%emt 0:02:07]} Rfe8 {[%emt 0:03:51]} 20. Rfe1 {[%emt 0:07:44]} Ne4 {[%emt 0:05:10]} 21. Nh5 {[%emt 0:05:05]} Nxc3 {[%emt 0:07:27]} 22. Qxc3 {[%emt 0:00:07]} f5 {[%emt 0:00:05]} 23. gxf5 {[%emt 0:05:02]} Bxf5 {[%emt 0:00:59]} 24. Qd4 {[%emt 0:00:18]} Qf7 {[%emt 0:04:26]} 25. Ng3 {[%emt 0:00:44]} Kh8 {[%emt 0:01:56]} 26. a4 {[%emt 0:06:16]} Be4 {[%emt 0:05:42]} 27. Nxe4 {[%emt 0:03:22]} dxe4 {[%emt 0:00:05]} 28. a5 {[%emt 0:00:03]} Nd7 {[%emt 0:01:20]} 29. Bxe4 {[%emt 0:00:07]} Nf6 {[%emt 0:00:04]} 30. Bg2 {[%emt 0:00:05]} Rac8 {[%emt 0:01:21]} 31. Qxa7 {[%emt 0:03:55]} Rc2 {[%emt 0:00:31]} 32. Qxb7 {[%emt 0:00:10]} Qg6 {[%emt 0:00:29]} 33. Qf3 {[%emt 0:00:05]} Ne4 {[%emt 0:00:27]} 34. a6 {[%emt 0:01:22]} h5 {[%emt 0:00:21]} 35. a7 {[%emt 0:02:40]} Rf2 {[%emt 0:00:38]} 36. Qxe4 {[%emt 0:00:34]} Rxe4 {[%emt 0:00:08]} 37. a8=Q+ {[%emt 0:00:51]} Re8 {[%emt 0:00:06]} 38. Qd5 {[%emt 0:01:39]} 1-0

[Event "45th FIDE Womens Olympiad 2024"]
[Site "Budapest"]
[Date "2024.09.19"]
[Round "8.31"]
[White "Janzelj, Lara"]
[Black "Ni, Shiqun"]
[Result "0-1"]
[ECO "D73"]
[WhiteElo "2193"]
[BlackElo "2348"]
[Annotator "TA"]
[PlyCount "68"]
[EventDate "2024.09.05"]
[EventType "team-tourn"]
[EventCountry "HUN"]
[SourceTitle "playchess.com"]
[Source "ChessBase"]
[SourceQuality "1"]
[WhiteTeam "Slovenia"]
[BlackTeam "China"]
[WhiteTeamCountry "SLO"]
[BlackTeamCountry "CHN"]
[TimeControl "40/5400+30:1800+30"]

{[%evp 11,68,0,20,0,0,0,0,0,15,0,12,-26,-19,-25,-29,-81,-84,-141,-150,-290,-148,-205,-219,-214,-63,-212,-187,-369,-388,-384,-361,-447,-376,-411,-418,-408,-408,-463,-424,-418,-420,-434,-410,-548,-531,-639,-629,-645,-635,-626,-642,-5402,-5385,-29983,-29984,-29984,-29985,-29983,-29984]} 1. Nf3 {[%emt 0:00:04]} d5 {[%emt 0:00:14]} 2. g3 {[%emt 0:00:16]} g6 {[%emt 0:01:45]} 3. Bg2 {[%emt 0:00:53]} Bg7 {[%emt 0:00:05]} 4. d4 {[%emt 0:00:54]} Nf6 {[%emt 0:00:52]} 5. c4 {[%emt 0:00:36]} dxc4 {[%emt 0:08:48]} 6. Qa4+ {[%emt 0:07:02]} Nbd7 {[%emt 0:04:19][%cal Bb8d7,Bd7b6,Bb6d5,Bd5c3][%mdl 32]} 7. Qxc4 {[%emt 0:01:31]} Nb6 {[%emt 0:01:39]} 8. Qb3 {[%emt 0:01:09]} Be6 {[%emt 0:03:18]} 9. Qd1 {[%emt 0:00:18] The position is equal.} O-O {[%emt 0:10:24]} 10. Nc3 {[%emt 0:00:27]} Nbd5 {[%emt 0:09:24]} 11. Ng5 {[%emt 0:11:57]} Nxc3 $1 {[%emt 0:00:36]} 12. bxc3 {[%emt 0:02:03][%cal Og5e6]} Bd5 {[%emt 0:00:02]} 13. f3 {[%emt 0:02:58]} (13. O-O $11) 13... Bc4 $17 {[%emt 0:05:15][%cal Oc7c5]} 14. Qc2 {[%emt 0:25:31]} (14. e4 $142) 14... c5 $1 {[%emt 0:04:10]} 15. O-O {[%emt 0:03:21]} (15. Bb2 $17) 15... Nd5 {[%emt 0:16:39]} (15... cxd4 $19 {Strongly threatening ...d3.} 16. Rd1 Nd5 17. Rxd4 Rc8 (17... Bxd4+ $2 18. cxd4 Rc8 19. Qd2 $19)) 16. Kh1 {[%emt 0:03:39]} (16. dxc5 $17 Qa5 (16... Bxc3 17. Bb2 $17) 17. Kh1) 16... cxd4 $19 {[%emt 0:06:54]} 17. cxd4 {[%emt 0:00:04]} Bxd4 $2 {[%emt 0:00:56] [#]} ({Black should play} 17... Rc8 $19 18. Qb2 Qb6) 18. Rb1 {[%emt 0:04:44] Now White is beyond hope.} ({White has to play} 18. Qxc4 $15 Bxa1 19. Qh4) 18... Rc8 {[%emt 0:01:37]} 19. Bb2 {[%emt 0:08:36] Prevents Nc3} (19. Bh3) 19... e5 {[%emt 0:04:31]} (19... Bxa2 $2 20. Qa4 Bxb2 (20... Bxb1 21. Qxd4 $15) 21. Rxb2 $19) 20. Bxd4 {[%emt 0:04:16]} exd4 {[%emt 0:00:11]} 21. h4 {[%emt 0:02:01]} Ne3 {[%emt 0:00:35]} 22. Qd2 {[%emt 0:00:11]} Nxf1 {[%emt 0:00:38]} 23. Bxf1 {[%emt 0:00:18]} b5 {[%emt 0:02:51]} 24. Rd1 {[%emt 0:00:18]} Qc7 {[%emt 0:03:27]} 25. Kg2 {[%emt 0:01:19]} Qe5 {[%emt 0:00:13]} 26. Ne4 {[%emt 0:00:46]} Kg7 {[%emt 0:04:00]} 27. h5 {[%emt 0:00:21]} gxh5 {[%emt 0:00:42]} 28. Qb2 {[%emt 0:00:55]} Rfd8 {[%emt 0:00:42]} 29. e3 {[%emt 0:04:39]} Bxf1+ {[%emt 0:02:01]} 30. Kxf1 {[%emt 0:00:02]} Rc4 {[%emt 0:02:04]} 31. Qh2 {[%emt 0:06:00]} dxe3 {[%emt 0:01:25]} 32. Re1 {[%emt 0:00:04]} Rxe4 {[%emt 0:00:52] Black mates.} 33. fxe4 {[%emt 0:00:08]} Qf6+ {[%emt 0:00:42]} 34. Kg1 {[%emt 0:00:12]} Rd2 {[%emt 0:00:04] Weighted Error Value: White=0.88/Black=0.18 (very precise) .  Mistake:       	White=6     	Black=2      Inaccurate:     	White=2     	---        OK:         	White=4     	Black=11     Strong:       	---       	Black=1} 0-1

[Event "45th FIDE Womens Olympiad 2024"]
[Site "Budapest"]
[Date "2024.09.19"]
[Round "8.31"]
[White "Gba, Zotta Marcelle Auror"]
[Black "Almeida, Jacira Laura"]
[Result "0-1"]
[ECO "C53"]
[WhiteElo "1427"]
[BlackElo "1616"]
[PlyCount "96"]
[EventDate "2024.09.05"]
[EventType "team-tourn"]
[EventCountry "HUN"]
[WhiteTeam "Cote d/^Ivoire"]
[BlackTeam "Cape Verde"]
[TimeControl "40/5400+30:1800+30"]

1. e4 e5 2. Nf3 Nc6 3. Bc4 Bc5 4. c3 a6 5. a3 d6 6. h3 Be6 7. Ba2 Nf6 8. d3 O-O 9. O-O Bxa2 10. Rxa2 h6 11. Nbd2 d5 12. exd5 Qxd5 13. c4 Qe6 14. Re1 Rad8 15. b4 Ba7 16. Bb2 Rxd3 17. Nxe5 Nxe5 18. Rxe5 Qd7 19. Ba1 Re8 20. Rxe8+ Nxe8 21. Qe2 Qd8 22. Nf1 Rd7 23. Rd2 Rxd2 24. Nxd2 c6 25. c5 Bb8 26. Nf3 Bc7 27. Nd4 Nf6 28. Nf5 Qe8 29. Qxe8+ Nxe8 30. g4 Kh7 31. Ne3 g5 32. a4 Kg6 33. Nc4 f5 34. gxf5+ Kxf5 35. Ne3+ Kf4 36. Kg2 h5 37. Bd4 Ke4 38. Nc2 Kd3 39. Ne3 Kxd4 40. Kf3 a5 41. Nc2+ Kc3 42. Ne3 axb4 43. Nd1+ Kd2 44. Nb2 Nf6 45. Nc4+ Kc3 46. Ne3 Bf4 47. Ng2 Bc1 48. Ke2 b3 {0-} 0-1

[Event "45th FIDE Womens Olympiad 2024"]
[Site "Budapest"]
[Date "2024.09.19"]
[Round "8.32"]
[White "Lu, Miaoyi"]
[Black "Vidic, Teja"]
[Result "1-0"]
[ECO "A13"]
[WhiteElo "2438"]
[BlackElo "2128"]
[Annotator "TA"]
[PlyCount "61"]
[EventDate "2024.09.05"]
[EventType "team-tourn"]
[EventCountry "HUN"]
[SourceTitle "playchess.com"]
[Source "ChessBase"]
[SourceQuality "1"]
[WhiteTeam "China"]
[BlackTeam "Slovenia"]
[WhiteTeamCountry "CHN"]
[BlackTeamCountry "SLO"]
[TimeControl "40/5400+30:1800+30"]

{[%evp 18,61,40,29,32,13,67,62,54,52,58,54,56,54,79,46,82,86,127,120,186,189,180,165,227,221,397,403,376,304,285,285,289,274,509,321,655,544,537,539,545,555,530,553,583,561]} 1. Nf3 {[%emt 0:00:02]} d5 {[%emt 0:00:13]} 2. e3 {[%emt 0:00:02]} Nf6 {[%emt 0:02:27]} 3. c4 {[%emt 0:00:02]} e6 {[%emt 0:00:09]} 4. b3 {[%emt 0:00:04]} c5 {[%emt 0:02:07]} 5. Bb2 {[%emt 0:00:16]} Nc6 {[%emt 0:03:04]} 6. cxd5 {[%emt 0:00:03]} exd5 {[%emt 0:00:07]} 7. Be2 {[%emt 0:00:05]} Bd6 {[%emt 0:01:48]} 8. O-O {[%emt 0:02:44]} O-O {[%emt 0:01:08]} 9. d4 {[%emt 0:00:02]} cxd4 {[%emt 0:07:14]} 10. Nxd4 {[%emt 0:00:03]} Bc7 {[%emt 0:00:08]} 11. Nd2 {[%emt 0:12:02]} Qd6 {[%emt 0:11:31]} ({Black should play} 11... Re8 $11) 12. N2f3 $14 {[%emt 0:00:20] Strongly threatening Nb5.} Ne5 {[%emt 0:00:38] White is slightly better.} 13. Rc1 {[%emt 0:15:16][%cal Ba1c1,Bc1c2,Bc2d2,Bd2d5,Bd5h5][%mdl 32]} Bd7 {[%emt 0:14:02]} 14. Rc2 {[%emt 0:13:45] [#] Hoping for Nxe5.} Rfc8 {[%emt 0:17:03]} 15. Qa1 {[%emt 0:10:27]} Nfg4 {[%emt 0:08:53]} 16. Nxe5 {[%emt 0:21:32]} Qxe5 {[%emt 0:05:29]} 17. Nf3 {[%emt 0:02:19]} Qf5 {[%emt 0:04:53]} 18. Rd2 {[%emt 0:05:16][%cal Oe2d3]} Re8 {[%emt 0:05:17]} (18... Nf6 $16) 19. Bxg7 $18 {[%emt 0:13:56]} f6 {[%emt 0:06:11] [#]} 20. h3 $1 {[%emt 0:01:17]} Kxg7 {[%emt 0:01:20]} (20... Qg6 {was called for.}) 21. hxg4 {[%emt 0:00:16]} Qxg4 {[%emt 0:00:40]} (21... Qe6 {was necessary.} 22. Rfd1 Bc6) 22. Rxd5 {[%emt 0:00:15] aiming for Nd4.} Qe6 {[%emt 0:03:07]} 23. Bc4 {[%emt 0:00:17]} Qe7 {[%emt 0:00:18]} 24. Rh5 {[%emt 0:01:07]} h6 {[%emt 0:01:50]} 25. Qd4 {[%emt 0:00:17] Repels Bg4} b5 $2 {[%emt 0:02:37]} (25... Rad8 {is a better defense.} 26. Bb5 (26. Qxa7 Bg4 $18) 26... Be5 27. Nxe5 (27. Qxa7 $2 Bxb5 28. Re1 Qf7 $19) 27... fxe5) 26. Bd3 {[%emt 0:00:28]} Bb6 $2 {[%emt 0:00:24]} (26... Rad8 27. Bxb5 (27. Qxa7 $2 {perishes.} Bg4 $19) 27... Be5) 27. Qf4 {[%emt 0:00:14] White is clearly winning.} Bxe3 {[%emt 0:00:46]} 28. fxe3 {[%emt 0:00:21]} Qxe3+ {[%emt 0:00:02]} 29. Qxe3 {[%emt 0:00:08]} Rxe3 {[%emt 0:00:04]} 30. Bxb5 {[%emt 0:00:24]} Kg6 {[%emt 0:00:43]} 31. Rd5 {[%emt 0:00:42] Weighted Error Value: White=0.24 (precise) /Black=0.64.  Mistake:       	---       	Black=6      Inaccurate:     	White=2     	Black=2      OK:         	White=7     	Black=6      Best:        	White=3     	Black=1      Strong:       	White=1     	---} 1-0

[Event "45th FIDE Womens Olympiad 2024"]
[Site "Budapest"]
[Date "2024.09.19"]
[Round "8.33"]
[White "Mammadzada, Gunay"]
[Black "Brunello, Marina"]
[Result "1/2-1/2"]
[ECO "D30"]
[WhiteElo "2433"]
[BlackElo "2348"]
[Annotator "ChessBase"]
[PlyCount "133"]
[EventDate "2024.09.05"]
[EventType "team-tourn"]
[EventCountry "HUN"]
[SourceTitle "playchess.com"]
[Source "ChessBase"]
[SourceQuality "1"]
[WhiteTeam "Azerbaijan"]
[BlackTeam "Italy"]
[WhiteTeamCountry "AZE"]
[BlackTeamCountry "ITA"]
[TimeControl "40/5400+30:1800+30"]

1. d4 d5 2. c4 e6 3. Nf3 h6 4. g3 Nf6 5. Bg2 Bd6 6. O-O O-O 7. Qc2 b6 8. Nbd2 Bb7 9. cxd5 exd5 10. Nh4 Re8 11. Ndf3 c5 12. Nf5 Bf8 13. Bf4 Nc6 14. a3 Rc8 15. Rad1 Na5 16. Rfe1 Ba6 17. Bf1 Ne4 18. Qb1 c4 19. Qc2 c3 20. Ne5 f6 21. Ng6 Bc4 22. Qc1 Bb3 23. Rd3 cxb2 24. Qxb2 Rc2 25. Qb1 Nc3 26. Rxc3 Rxc3 27. Nxf8 Bc2 28. Qb2 Rc6 29. Ne3 Rxe3 30. Bxe3 Kxf8 31. Rc1 Be4 32. Rxc6 Nxc6 33. Qb5 Qd7 34. f3 Bf5 35. Bf2 Na5 36. Qb4+ Qe7 37. Qc3 Kf7 38. e3 Bb1 39. Bb5 Bf5 40. g4 Bd7 41. Bd3 Qd6 42. Kg2 Qc6 43. Qb4 Nb7 44. Bg3 a5 45. Qb3 Nd6 46. e4 Be6 47. e5 Nc4 48. exf6 Kxf6 49. Kf2 Bd7 50. h4 b5 51. h5 Kf7 52. Bb1 Qf6 53. Qd3 Kf8 54. Kg2 Be6 55. Ba2 Bf7 56. Qc3 Be8 57. Bxc4 bxc4 58. Bc7 a4 59. Qb4+ Kg8 60. Be5 Qf7 61. Kg3 Qd7 62. f4 Qc8 63. Qe7 Qd7 64. Qc5 Qc6 65. Qe7 Qd7 66. Qc5 Qc6 67. Qe7 1/2-1/2

[Event "45th FIDE Womens Olympiad 2024"]
[Site "Budapest"]
[Date "2024.09.19"]
[Round "8.33"]
[White "Al Aisaee, Anat"]
[Black "Magne Kouokam Sylviane"]
[Result "1-0"]
[ECO "C62"]
[WhiteElo "1608"]
[BlackElo "1587"]
[PlyCount "111"]
[EventDate "2024.09.05"]
[EventType "team-tourn"]
[EventCountry "HUN"]
[WhiteTeam "Oman"]
[BlackTeam "Cameroon"]
[WhiteTeamCountry "OMN"]
[BlackTeamCountry "CAM"]
[TimeControl "40/5400+30:1800+30"]

1. e4 e5 2. Nf3 Nc6 3. Bb5 d6 4. O-O Be7 5. d4 exd4 6. Nxd4 Bd7 7. Nxc6 bxc6 8. Bd3 Nf6 9. Nd2 O-O 10. h3 c5 11. b3 Bc6 12. Bb2 d5 13. Re1 d4 14. Nc4 Nd7 15. Na5 Nb8 16. Nxc6 Nxc6 17. e5 f5 18. Bc4+ Kh8 19. Qf3 Nb4 20. Re2 c6 21. Rd1 Rc8 22. a3 Nd5 23. Rd3 Bg5 24. Rd1 Nf4 25. Ree1 Qe7 26. Bc1 Ng6 27. Bxg5 Qxg5 28. Qg3 Qe7 29. e6 Qf6 30. Qd6 Qg5 31. Kh1 Nf4 32. Bf1 Qh6 33. a4 Rfe8 34. Qxc5 Nxe6 35. Qxa7 Qf4 36. Kg1 c5 37. Qd7 Qc7 38. Bb5 Rcd8 39. Qxc7 Nxc7 40. Bxe8 Nxe8 41. a5 h6 42. Re5 Rc8 43. Rxf5 Nd6 44. Rd5 Nb5 45. Rd7 Re8 46. Kf1 Ra8 47. Ra1 Kh7 48. a6 Kg6 49. a7 Nxa7 50. Raxa7 Rg8 51. Rac7 Kf5 52. Rxg7 Rxg7 53. Rxg7 Ke4 54. Ke2 Kd5 55. Kd3 Kc6 56. f4 1-0

[Event "45th FIDE Womens Olympiad 2024"]
[Site "Budapest"]
[Date "2024.09.19"]
[Round "8.34"]
[White "Zimina, Olga"]
[Black "Fataliyeva, Ulviyya"]
[Result "0-1"]
[ECO "D23"]
[WhiteElo "2302"]
[BlackElo "2378"]
[Annotator "TA"]
[PlyCount "86"]
[EventDate "2024.09.05"]
[EventType "team-tourn"]
[EventCountry "HUN"]
[SourceTitle "playchess.com"]
[Source "ChessBase"]
[SourceQuality "1"]
[WhiteTeam "Italy"]
[BlackTeam "Azerbaijan"]
[WhiteTeamCountry "ITA"]
[BlackTeamCountry "AZE"]
[TimeControl "40/5400+30:1800+30"]

{[%evp 9,86,8,0,0,-5,-20,-28,-30,-16,-24,-21,-15,-23,-30,-31,-41,-37,-36,-30,-27,-11,-21,-33,-24,-12,-14,8,-52,-50,-60,-31,-46,13,12,6,-12,0,-13,-20,-20,-30,-10,0,-3,-5,-208,-218,-215,-212,-219,-215,-220,-210,-195,-182,-186,-173,-466,-460,-379,-477,-509,-459,-562,-555,-568,-527,-564,-551,-707,-622,-994,-1125,-1153,-1081,-1170,-1094,-762,-664]} 1. d4 Nf6 2. Nf3 d5 3. g3 c5 4. c4 dxc4 5. Qa4+ Qd7 6. Qxc4 cxd4 7. Nxd4 e5 {Repels Bf4} 8. Nb5 {Black has an edge.} Nc6 {White must now prevent ...a6.} 9. Bg2 a6 10. N5c3 Nd4 11. O-O b5 12. Qd3 Bb7 13. Bg5 Bxg2 14. Kxg2 Qc6+ 15. e4 $1 Nd7 16. Nd2 Nc5 17. Qb1 f5 18. Be3 (18. f3 $11) 18... b4 $1 $15 19. Bxd4 exd4 20. Ne2 fxe4 (20... O-O-O $15 21. Nb3 d3 (21... Nxe4 $2 {perishes.} 22. Nexd4 Qe8 23. Re1 $18)) 21. Nxd4 $11 Qd5 22. N2b3 Be7 23. Nxc5 Bxc5 24. Nb3 {Hoping for Nxc5.} e3+ 25. f3 e2 $36 {[%mdl 2048] Prevents Rd1. Black has some pressure.} 26. Re1 {[%cal Ob3c5] Threatens to win with Nxc5! White is weak on the dark squares} O-O {The board is on fire.} 27. Qe4 {Now White is beyond hope.} (27. Nxc5 $1 $11 {and White has nothing to worry.} Qxf3+ 28. Kg1) 27... Qxe4 $19 28. fxe4 Rf2+ 29. Kh3 Be3 30. Nc1 Bxc1 31. Raxc1 {[%mdl 4096] Endgame. KRR-KRR} Re8 32. Rc4 Re6 33. e5 $2 (33. g4) 33... Rxe5 34. Rf4 Rh5+ 35. Rh4 {[#] Black is clearly winning.} Rd5 36. Re4 {[#]} Rd2 37. b3 Rxa2 38. Re3 Rc2 39. g4 Rf1 40. Re8+ Kf7 41. R8xe2 Rf3+ 42. Kg2 Rxe2+ (42... Rxb3 $2 {too greedy.} 43. Rxc2 Kg6 44. Rc7 $18) 43. Rxe2 Rxb3 {Weighted Error Value: White=0.43/Black=0.05 (flawless) .  Loses game:     	White=1     	---        Mistake:       	White=2     	Black=1      Inaccurate:     	White=1     	Black=1      OK:         	White=11    	Black=18     Best:        	White=6     	Black=8      Strong:       	White=1     	Black=1} 0-1

[Event "45th FIDE Womens Olympiad 2024"]
[Site "Budapest"]
[Date "2024.09.19"]
[Round "8.34"]
[White "Danwe Maissiri Carole"]
[Black "Al Balushi, Mariya"]
[Result "0-1"]
[ECO "C54"]
[WhiteElo "1456"]
[BlackElo "1561"]
[PlyCount "72"]
[EventDate "2024.09.05"]
[EventType "team-tourn"]
[EventCountry "HUN"]
[WhiteTeam "Cameroon"]
[BlackTeam "Oman"]
[WhiteTeamCountry "CAM"]
[BlackTeamCountry "OMN"]
[TimeControl "40/5400+30:1800+30"]

1. e4 e5 2. Nf3 Nc6 3. Bc4 Nf6 4. d3 Bc5 5. c3 Qe7 6. O-O d6 7. a4 a6 8. Re1 Bg4 9. Be3 O-O 10. Nbd2 Rad8 11. Qb3 Na5 12. Qa2 Nxc4 13. Qxc4 Be6 14. Nxe5 Bxc4 15. Nexc4 Bxe3 16. Rxe3 Ng4 17. Rg3 Ne5 18. Ne3 Qe6 19. Nf5 g6 20. d4 Nd7 21. d5 Qe5 22. Re1 b5 23. Nf3 Qf6 24. Nh6+ Kh8 25. Ng4 Qg7 26. Ng5 Ne5 27. Rh3 Nxg4 28. Rxh7+ Qxh7 29. Nxh7 Kxh7 30. f3 Ne5 31. axb5 axb5 32. Rd1 Ra8 33. Kf2 Ra2 34. Kg3 Rxb2 35. f4 Nc4 36. Kg4 Ne3+ {0-} 0-1

[Event "45th FIDE Womens Olympiad 2024"]
[Site "Budapest"]
[Date "2024.09.19"]
[Round "8.35"]
[White "Beydullayeva, Govhar"]
[Black "Sedina, Elena"]
[Result "1/2-1/2"]
[ECO "D37"]
[WhiteElo "2395"]
[BlackElo "2196"]
[Annotator "TA"]
[PlyCount "82"]
[EventDate "2024.09.05"]
[EventType "team-tourn"]
[EventCountry "HUN"]
[SourceTitle "playchess.com"]
[Source "ChessBase"]
[SourceQuality "1"]
[WhiteTeam "Azerbaijan"]
[BlackTeam "Italy"]
[WhiteTeamCountry "AZE"]
[BlackTeamCountry "ITA"]
[TimeControl "40/5400+30:1800+30"]

{[%evp 9,82,28,44,38,50,20,12,20,15,22,29,25,18,9,37,33,26,16,31,22,26,35,38,14,16,0,26,4,54,61,50,31,51,14,11,7,11,0,12,22,54,45,47,52,45,24,29,0,0,0,0,0,0,0,0,0,0,0,0,0,0,0,50,0,0,0,0,0,0,0,0,0,0,0,0]} 1. d4 d5 2. c4 e6 3. Nf3 h6 4. Nc3 Nf6 5. Bf4 c5 6. e3 cxd4 7. exd4 Bb4 8. Bd3 dxc4 9. Bxc4 Nc6 10. O-O O-O 11. Rc1 Bd6 12. Ne5 Qe7 13. Nxc6 bxc6 14. Qf3 a5 15. Be5 Rd8 16. Rfe1 Bb7 17. Qg3 c5 18. Nb5 Bxe5 (18... Bb8 $11) 19. dxe5 $14 Ne8 20. Qe3 a4 21. Red1 Ba6 22. Na3 Bxc4 23. Nxc4 Rxd1+ 24. Rxd1 Rd8 25. Rxd8 Qxd8 {[%mdl 4096] Endgame. KQN-KQN} 26. Qd2 (26. Qxc5 $2 Qd1#) 26... Qh4 27. f4 Nc7 28. g3 Qg4 29. Qd8+ Kh7 30. Qd3+ Kg8 31. Qd8+ Kh7 32. Qd3+ Kg8 33. Nb6 Nd5 34. Nxd5 exd5 35. Qxd5 $11 {KQ-KQ} Qe2 ({Black should try} 35... Qg6 $11) 36. Qa8+ (36. Qxc5 $14 Qd1+ 37. Kf2) 36... Kh7 {The position is equal.} 37. Qg2 Qd1+ 38. Qf1 Qd4+ 39. Qf2 {[#] Strongly threatening Qxd4.} Qd1+ 40. Qf1 Qd4+ 41. Qf2 {And now Qxd4 would win.} Qd1+ {Weighted Error Value: White=0.10 (very precise) /Black=0.08 (flawless) .  Mistake:       	White=1     	Black=2      Inaccurate:     	White=3     	Black=3      OK:         	White=9     	Black=14     Best:        	White=1     	Black=2} 1/2-1/2

[Event "45th FIDE Womens Olympiad 2024"]
[Site "Budapest"]
[Date "2024.09.19"]
[Round "8.35"]
[White "Al Nadabi, Yomna"]
[Black "Tchouateu Tankeu Stephanie"]
[Result "1-0"]
[ECO "D02"]
[WhiteElo "1612"]
[BlackElo "1565"]
[PlyCount "41"]
[EventDate "2024.09.05"]
[EventType "team-tourn"]
[EventCountry "HUN"]
[WhiteTeam "Oman"]
[BlackTeam "Cameroon"]
[WhiteTeamCountry "OMN"]
[BlackTeamCountry "CAM"]
[TimeControl "40/5400+30:1800+30"]

1. d4 d5 2. Bf4 Nf6 3. e3 Bf5 4. Nf3 Nc6 5. Nbd2 e6 6. c3 Be7 7. Be2 O-O 8. h4 h6 9. Ne5 Nxe5 10. dxe5 Nd7 11. g4 Be4 12. Nxe4 Bxh4 13. g5 hxg5 14. Nxg5 Bxg5 15. Bd3 g6 16. Qg4 Bxf4 17. exf4 Kg7 18. O-O-O c5 19. Rdg1 Nf6 20. Qg5 Ne4 21. Qh6+ 1-0